bitfinex/quotes_BTCUSD_20251212
["timestamp","ask_amount","ask_price","bid_price","bid_amount"]
[1765579381053,0.00023828,90397.0,90396.0,0.005]
[1765579381552,0.00023828,90397.0,90396.0,0.02943]
[1765579381770,0.00023828,90397.0,90396.0,0.005]
[1765579381929,0.00023828,90397.0,90396.0,0.04481]
[1765579385877,0.00023828,90397.0,90396.0,0.08801]
[1765579386491,0.00023828,90397.0,90396.0,0.02038]
[1765579386681,0.00023828,90397.0,90396.0,0.005]
[1765579388504,0.00023828,90397.0,90396.0,0.002]
[1765579388898,0.23231115,90396.0,90393.0,0.0110628]
[1765579389346,0.01106268,90394.0,90391.0,0.01241]
[1765579389520,0.0110628,90393.0,90389.0,0.01106329]
[1765579389723,0.0110628,90393.0,90390.0,0.01106317]
[1765579389984,0.0110628,90393.0,90390.0,0.23232635]
[1765579390167,0.01106268,90394.0,90393.0,0.003]
[1765579390469,0.01106255,90395.0,90393.0,0.003]
[1765579390819,0.23231563,90395.0,90393.0,0.003]
[1765579391702,0.22126096,90391.0,90390.0,0.002]
[1765579391979,0.22126096,90391.0,90390.0,0.003]
[1765579392381,0.23233203,90388.0,90385.0,0.01106378]
[1765579393480,0.23233203,90388.0,90385.0,0.01606378]
[1765579394474,0.23233203,90388.0,90385.0,0.005]
[1765579395324,0.22127299,90387.0,90385.0,0.005]
[1765579395932,0.22127313,90387.0,90385.0,0.005]
[1765579396066,0.22127313,90387.0,90385.0,0.002]
[1765579396271,0.22128316,90382.0,90380.0,0.01744]
[1765579396473,0.01661544,90381.0,90380.0,0.01744]
[1765579398436,0.01661544,90381.0,90380.0,0.02044]
[1765579398790,0.01661544,90381.0,90380.0,0.02444]
[1765579398965,0.01661544,90381.0,90380.0,0.02044]
[1765579399325,0.23790088,90381.0,90380.0,0.02444]
[1765579399752,0.01661544,90381.0,90380.0,0.02444]
[1765579401043,0.01661544,90381.0,90380.0,0.02144]
[1765579401247,0.01661544,90381.0,90380.0,0.01744]
[1765579401441,0.01661544,90381.0,90380.0,0.02044]
[1765579401662,0.01661544,90381.0,90380.0,0.02444]
[1765579403700,0.01661544,90381.0,90380.0,0.04786]
[1765579407379,0.01661544,90381.0,90380.0,0.06366]
[1765579407988,0.01661544,90381.0,90380.0,0.02444]
[1765579408402,0.01661544,90381.0,90380.0,0.24572789]
[1765579408949,0.01661544,90381.0,90380.0,0.28494789]
[1765579411761,0.01661544,90381.0,90380.0,0.06366]
[1765579414749,0.01661544,90381.0,90380.0,0.28494789]
[1765579418265,0.01661544,90383.0,90381.0,0.01106427]
[1765579418893,0.01661544,90383.0,90381.0,0.23234727]
[1765579419103,0.01661544,90383.0,90381.0,0.25576727]
[1765579419543,0.01661544,90383.0,90382.0,0.05125]
[1765579419980,0.01661544,90383.0,90382.0,0.02783]
[1765579420558,0.01661544,90383.0,90382.0,0.05325]
[1765579421182,0.01661544,90383.0,90382.0,0.05625]
[1765579421683,0.01661544,90383.0,90382.0,0.01703]
[1765579423091,0.01661544,90383.0,90382.0,0.05625]
[1765579427848,0.23789599,90383.0,90382.0,0.005]
[1765579429138,0.25030599,90383.0,90382.0,0.005]
[1765579430705,0.02902544,90383.0,90382.0,0.005]
[1765579430906,0.02902544,90383.0,90382.0,0.26765299]
[1765579430907,0.01241,90383.0,90382.0,0.26765299]
[1765579431107,0.01106304,90391.0,90388.0,0.01106341]
[1765579431529,0.03322912,90390.0,90389.0,0.02486]
[1765579432715,0.03322912,90390.0,90389.0,0.02586]
[1765579433540,0.03322912,90390.0,90389.0,0.001]
[1765579434644,0.03322912,90390.0,90389.0,0.003]
[1765579441885,0.03322912,90390.0,90389.0,0.04437]
[1765579442503,0.00023828,90397.0,90395.0,0.22125104]
[1765579442700,0.03346285,90397.0,90396.0,0.05353]
[1765579443049,0.03346285,90397.0,90396.0,0.27477872]
[1765579443253,0.00023828,90397.0,90396.0,0.27477872]
[1765579443469,0.00023828,90397.0,90396.0,0.05353]
[1765579444413,0.00023828,90397.0,90396.0,0.05453]
[1765579444916,0.00023828,90397.0,90396.0,0.05753]
[1765579445497,0.00023828,90397.0,90396.0,0.004]
[1765579445696,0.00185115,90397.0,90396.0,0.004]
[1765579446428,0.00134013,90397.0,90396.0,0.004]
[1765579450193,0.05560354,90397.0,90396.0,0.004]
[1765579450548,0.01240354,90397.0,90396.0,0.004]
[1765579451078,0.01240354,90397.0,90382.0,0.01106414]
[1765579451079,0.01106341,90388.0,90385.0,0.01106378]
[1765579451294,0.0110639,90384.0,90381.0,0.01216]
[1765579451490,0.01661544,90382.0,90381.0,0.02322427]
[1765579451691,0.01661544,90382.0,90381.0,0.04835701]
[1765579452458,0.01661544,90382.0,90381.0,0.06145687]
[1765579453486,0.01661544,90382.0,90381.0,0.06445687]
[1765579453690,0.01661544,90382.0,90381.0,0.06145687]
[1765579454069,0.01661544,90382.0,90381.0,0.06845687]
[1765579460293,0.01661544,90382.0,90381.0,0.01833701]
[1765579460977,0.01661544,90382.0,90381.0,0.01533701]
[1765579461168,0.01661544,90382.0,90381.0,0.01833701]
[1765579461572,0.01661544,90382.0,90381.0,0.01433701]
[1765579462760,0.01661544,90382.0,90381.0,0.01833701]
[1765579464100,0.01661544,90382.0,90381.0,0.05902701]
[1765579471704,0.01661544,90382.0,90381.0,0.00727274]
[1765579472908,0.01661544,90382.0,90381.0,0.04761274]
[1765579473890,0.01661544,90382.0,90381.0,0.02267274]
[1765579474075,0.01661544,90382.0,90381.0,0.00727274]
[1765579478215,0.01661544,90382.0,90381.0,0.03221274]
[1765579479473,0.01661544,90382.0,90381.0,0.04761274]
[1765579488942,0.01661544,90382.0,90381.0,0.00727274]
[1765579489383,0.01661544,90382.0,90381.0,0.05925274]
[1765579494484,0.01661544,90382.0,90381.0,0.03431274]
[1765579495506,0.01661544,90382.0,90381.0,0.00727274]
[1765579496838,0.01661544,90382.0,90381.0,0.00327274]
[1765579497194,0.01661544,90382.0,90381.0,0.00027274]
[1765579497344,0.01661544,90382.0,90381.0,0.05808274]
[1765579499539,0.01661544,90382.0,90381.0,0.03426274]
[1765579499691,0.01661544,90382.0,90381.0,0.01774274]
[1765579499899,0.01661544,90382.0,90381.0,0.04156274]
[1765579500464,0.01661544,90382.0,90381.0,0.05808274]
[1765579501630,0.01661544,90382.0,90381.0,0.01774274]
[1765579510147,0.01661544,90382.0,90381.0,0.00627274]
[1765579544457,0.03323088,90382.0,90381.0,0.00627274]
[1765579548373,0.03323088,90382.0,90381.0,0.04947274]
[1765579548487,0.03323088,90382.0,90381.0,0.07375274]
[1765579548895,0.03323088,90382.0,90381.0,0.00627274]
[1765579580339,0.25451387,90382.0,90381.0,0.00627274]
[1765579580569,0.03323088,90382.0,90381.0,0.00627274]
[1765579580948,0.03323088,90382.0,90381.0,0.00327274]
[1765579581450,0.07643088,90382.0,90381.0,0.00327274]
[1765579581786,0.07643088,90382.0,90381.0,0.00527274]
[1765579581787,0.03323088,90382.0,90381.0,0.00527274]
[1765579607082,0.03323088,90382.0,90381.0,0.05737274]
[1765579607782,0.03323088,90382.0,90381.0,0.03431274]
[1765579608256,0.03323088,90382.0,90381.0,0.01766274]
[1765579609039,0.03323088,90382.0,90381.0,0.00527274]
[1765579622431,0.03323088,90382.0,90381.0,0.005]
[1765579622663,0.18063088,90382.0,90381.0,0.005]
[1765579622863,0.22383088,90382.0,90381.0,0.005]
[1765579623250,0.24127088,90382.0,90381.0,0.005]
[1765579623446,0.53197088,90382.0,90381.0,0.005]
[1765579623739,0.55586545,90382.0,90381.0,0.002]
[1765579624036,0.55586545,90382.0,90381.0,0.003]
[1765579624794,0.55586545,90382.0,90381.0,0.001]
[1765579624996,0.55586545,90382.0,90381.0,0.002]
[1765579625201,0.53197088,90382.0,90381.0,0.001]
[1765579625404,0.53197088,90382.0,90362.0,0.01106659]
[1765579625405,0.01106623,90365.0,90362.0,0.01106659]
[1765579625607,0.01661544,90363.0,90362.0,0.01140779]
[1765579625834,0.01661544,90363.0,90362.0,0.0003412]
[1765579626027,0.02802323,90363.0,90362.0,0.0003412]
[1765579626231,0.01661544,90363.0,90362.0,0.0003412]
[1765579626605,0.01661544,90363.0,90362.0,0.0033412]
[1765579626808,0.01661544,90363.0,90362.0,0.0053412]
[1765579627014,0.01661544,90363.0,90362.0,0.0023412]
[1765579628954,0.01661544,90363.0,90362.0,0.0053412]
[1765579629472,0.0498556,90363.0,90362.0,0.0053412]
[1765579629977,0.0498556,90363.0,90362.0,0.00506846]
[1765579631036,0.0498556,90363.0,90362.0,0.00306846]
[1765579631410,0.0498556,90363.0,90362.0,0.00206846]
[1765579631644,0.0498556,90363.0,90362.0,0.00506846]
[1765579634028,0.0498556,90363.0,90362.0,0.00306846]
[1765579634462,0.0498556,90363.0,90362.0,0.00106846]
[1765579634682,0.0498556,90363.0,90362.0,0.00306846]
[1765579639831,0.0930556,90363.0,90362.0,0.00306846]
[1765579649064,0.3837556,90363.0,90362.0,0.00306846]
[1765579650149,0.5311556,90363.0,90362.0,0.00306846]
[1765579653727,0.55346108,90363.0,90362.0,0.00306846]
[1765579653943,0.5311556,90363.0,90362.0,0.00306846]
[1765579654361,0.55503134,90363.0,90362.0,0.00306846]
[1765579659099,0.55503134,90363.0,90362.0,0.00106846]
[1765579659458,0.55503134,90363.0,90362.0,0.00206846]
[1765579659994,0.55503134,90363.0,90362.0,0.00106846]
[1765579661183,0.66553896,90363.0,90362.0,0.00106846]
[1765579663554,0.55503134,90363.0,90362.0,0.00106846]
[1765579666919,0.58491743,90363.0,90362.0,0.00106846]
[1765579667345,0.55503134,90363.0,90362.0,0.00106846]
[1765579667557,0.55503134,90363.0,90350.0,0.00202738]
[1765579667558,0.0110677,90353.0,90350.0,0.00202738]
[1765579667782,0.0432,90351.0,90350.0,0.00202738]
[1765579667996,0.01744,90352.0,90350.0,0.00202738]
[1765579668172,0.0432,90351.0,90350.0,0.00202738]
[1765579668691,0.34497076,90351.0,90350.0,0.00402738]
[1765579669258,0.34497076,90351.0,90350.0,0.00302738]
[1765579669661,0.34497076,90351.0,90350.0,0.00502738]
[1765579670492,0.49237076,90351.0,90350.0,0.00502738]
[1765579671285,0.49371089,90351.0,90350.0,0.00502738]
[1765579675435,0.60421851,90351.0,90350.0,0.00502738]
[1765579675802,0.49371089,90351.0,90350.0,0.00502738]
[1765579676440,0.49371089,90351.0,90350.0,0.00302738]
[1765579677510,0.49371089,90351.0,90350.0,0.00202738]
[1765579679368,0.46795089,90351.0,90350.0,0.00202738]
[1765579679728,0.51115089,90351.0,90350.0,0.00202738]
[1765579680128,0.46795089,90351.0,90350.0,0.00202738]
[1765579682268,0.45051089,90351.0,90350.0,0.00202738]
[1765579682452,0.46795089,90351.0,90350.0,0.00202738]
[1765579683161,0.45051089,90351.0,90350.0,0.00202738]
[1765579684998,0.44917076,90351.0,90350.0,0.00302738]
[1765579685203,0.15847076,90351.0,90350.0,0.00302738]
[1765579685566,0.15847076,90351.0,90350.0,0.00402738]
[1765579686140,0.15847076,90351.0,90350.0,0.00302738]
[1765579686276,0.15847076,90351.0,90350.0,0.00530012]
[1765579686480,0.36875892,90351.0,90350.0,0.04586012]
[1765579688072,0.36875892,90351.0,90350.0,0.00530012]
[1765579698694,0.36875892,90351.0,90350.0,0.00502738]
[1765579698897,0.40334618,90351.0,90350.0,0.00502738]
[1765579701995,0.44654618,90351.0,90350.0,0.00502738]
[1765579702192,0.46398618,90351.0,90350.0,0.00502738]
[1765579702446,0.46398618,90351.0,90350.0,0.00402738]
[1765579702796,0.46398618,90351.0,90350.0,0.00202738]
[1765579703155,0.46398618,90351.0,90350.0,0.00302738]
[1765579704487,0.84756806,90351.0,90350.0,0.00302738]
[1765579705246,0.75468618,90351.0,90350.0,0.00302738]
[1765579705876,0.75468618,90351.0,90350.0,0.00202738]
[1765579711996,0.77858806,90351.0,90350.0,0.00202738]
[1765579712363,0.73538806,90351.0,90350.0,0.00202738]
[1765579712963,0.77858806,90351.0,90350.0,0.00202738]
[1765579726701,0.73538806,90351.0,90350.0,0.00202738]
[1765579727116,0.77858806,90351.0,90350.0,0.00202738]
[1765579729742,0.73538806,90351.0,90350.0,0.00202738]
[1765579729978,0.77858806,90351.0,90350.0,0.00202738]
[1765579733956,0.77858806,90351.0,90340.0,0.0004]
[1765579733957,0.55528342,90341.0,90340.0,0.0004]
[1765579734161,0.72012342,90341.0,90340.0,0.00046844]
[1765579734367,0.7440253,90341.0,90340.0,0.00046844]
[1765579734582,0.74845932,90341.0,90340.0,0.00046844]
[1765579734793,0.80065576,90341.0,90340.0,0.00046844]
[1765579735004,0.80065576,90341.0,90340.0,0.00246844]
[1765579736793,0.80065576,90341.0,90340.0,0.00046844]
[1765579738342,0.70525932,90341.0,90340.0,0.00046844]
[1765579738571,0.68135744,90341.0,90340.0,0.00046844]
[1765579738791,0.51651744,90341.0,90340.0,0.00046844]
[1765579739250,0.22581744,90341.0,90340.0,0.00046844]
[1765579740147,0.22581744,90341.0,90340.0,0.00146844]
[1765579740552,0.22581744,90341.0,90340.0,0.00246844]
[1765579741131,0.22581744,90341.0,90340.0,0.00146844]
[1765579741562,0.22581744,90341.0,90340.0,0.00246844]
[1765579742853,0.22581744,90341.0,90340.0,0.00274118]
[1765579743054,0.22581744,90341.0,90340.0,0.04162118]
[1765579743423,0.22581744,90341.0,90340.0,0.01874118]
[1765579743633,0.22581744,90341.0,90340.0,0.00274118]
[1765579744850,0.37321744,90341.0,90340.0,0.00274118]
[1765579748813,0.37321744,90341.0,90340.0,0.00246844]
[1765579750110,0.41641744,90341.0,90340.0,0.00246844]
[1765579751761,0.37321744,90341.0,90340.0,0.00246844]
[1765579752623,0.37321744,90341.0,90340.0,0.00146844]
[1765579757067,0.41641744,90341.0,90340.0,0.00146844]
[1765579758300,0.37321744,90341.0,90340.0,0.00146844]
[1765579758743,0.41641744,90341.0,90340.0,0.00146844]
[1765579758895,0.37321744,90341.0,90340.0,0.00146844]
[1765579760529,0.41641744,90341.0,90340.0,0.00146844]
[1765579760827,0.37321744,90341.0,90340.0,0.00146844]
[1765579764634,0.41641744,90341.0,90340.0,0.00146844]
[1765579764830,0.37321744,90341.0,90340.0,0.00146844]
[1765579765086,0.41641744,90341.0,90340.0,0.00146844]
[1765579768426,0.37321744,90341.0,90340.0,0.00146844]
[1765579769038,0.41641744,90341.0,90340.0,0.00146844]
[1765579773906,0.37321744,90341.0,90340.0,0.00146844]
[1765579783037,0.39069744,90341.0,90340.0,0.00146844]
[1765579783802,0.37321744,90341.0,90340.0,0.00146844]
[1765579783997,0.39069744,90341.0,90340.0,0.00146844]
[1765579784223,0.37321744,90341.0,90340.0,0.00146844]
[1765579784422,0.39069744,90341.0,90340.0,0.00146844]
[1765579785012,0.37321744,90341.0,90340.0,0.00146844]
[1765579785424,0.39069744,90341.0,90340.0,0.00146844]
[1765579786800,0.43389744,90341.0,90340.0,0.00146844]
[1765579787383,0.41641744,90341.0,90340.0,0.00146844]
[1765579787720,0.43389744,90341.0,90340.0,0.00146844]
[1765579787926,0.39069744,90341.0,90340.0,0.00146844]
[1765579809249,0.43389744,90341.0,90340.0,0.00146844]
[1765579810371,0.43389744,90341.0,90340.0,0.00046844]
[1765579810591,0.39069744,90341.0,90340.0,0.00046844]
[1765579810933,0.39069744,90341.0,90340.0,0.00074118]
[1765579811758,0.37321744,90341.0,90340.0,0.00074118]
[1765579811957,0.37321744,90341.0,90340.0,0.00274118]
[1765579820703,0.36878342,90341.0,90340.0,0.00274118]
[1765579822448,0.36878342,90341.0,90340.0,0.01918118]
[1765579822970,0.36878342,90341.0,90340.0,0.00274118]
[1765579827077,0.36878342,90341.0,90340.0,0.00246844]
[1765579829945,0.402035,90341.0,90340.0,0.00246844]
[1765579831539,0.445235,90341.0,90340.0,0.00246844]
[1765579832302,0.445235,90341.0,90340.0,0.00046844]
[1765579832624,0.445235,90341.0,90340.0,0.00146844]
[1765579844739,0.402035,90341.0,90340.0,0.00146844]
[1765579866383,0.36878342,90341.0,90340.0,0.00146844]
[1765579876677,0.38040342,90341.0,90340.0,0.00146844]
[1765579905197,0.38040342,90341.0,90340.0,0.05070844]
[1765579905592,0.38040342,90341.0,90340.0,0.05098118]
[1765579910631,0.38040342,90341.0,90340.0,0.09418118]
[1765579911399,0.36878342,90341.0,90340.0,0.09418118]
[1765579911509,0.36878342,90341.0,90340.0,0.12642923]
[1765579912061,0.36878342,90341.0,90340.0,0.12742923]
[1765579912294,0.36878342,90341.0,90340.0,0.12942923]
[1765579912635,0.36878342,90341.0,90340.0,0.12742923]
[1765579912829,0.36878342,90341.0,90340.0,0.12942923]
[1765579913052,0.36878342,90341.0,90340.0,0.12842923]
[1765579913458,0.36878342,90341.0,90340.0,0.13042923]
[1765579914556,0.1474,90341.0,90340.0,0.13042923]
[1765579915663,0.1474,90341.0,90340.0,0.12842923]
[1765579915991,0.1474,90341.0,90340.0,0.13042923]
[1765579916208,0.1474,90341.0,90340.0,0.12842923]
[1765579916591,0.1474,90341.0,90340.0,0.13042923]
[1765579917232,0.16401544,90342.0,90341.0,0.0432]
[1765579917411,0.16401544,90342.0,90341.0,0.08270274]
[1765579918638,0.16401544,90342.0,90341.0,0.08470274]
[1765579919397,0.16401544,90342.0,90341.0,0.08670274]
[1765579920717,0.16401544,90342.0,90341.0,0.11995042]
[1765579922191,0.16401544,90342.0,90341.0,0.07675042]
[1765579923045,0.01661544,90342.0,90341.0,0.07675042]
[1765579924852,0.01661544,90342.0,90341.0,0.09888876]
[1765579926376,0.01661544,90345.0,90342.0,0.01106904]
[1765579926577,0.01661544,90345.0,90342.0,0.03413178]
[1765579926778,0.01661544,90345.0,90344.0,0.02804]
[1765579926994,0.01661544,90345.0,90344.0,0.02831274]
[1765579927190,0.01661544,90345.0,90344.0,0.09430274]
[1765579927615,0.01661544,90345.0,90344.0,0.1275478]
[1765579928426,0.01661544,90345.0,90344.0,0.1295478]
[1765579929208,0.01661544,90345.0,90344.0,0.1315478]
[1765579930394,0.01661544,90345.0,90344.0,0.35292387]
[1765579930612,0.01661544,90345.0,90344.0,0.1315478]
[1765579932538,0.01661544,90345.0,90344.0,0.1295478]
[1765579932734,0.01661544,90345.0,90344.0,0.1275478]
[1765579932943,0.01661544,90345.0,90344.0,0.1325478]
[1765579933546,0.01661544,90345.0,90344.0,0.1546854]
[1765579936420,0.01661544,90345.0,90344.0,0.1325478]
[1765579944919,0.01661544,90345.0,90344.0,0.0893478]
[1765579964067,0.01661544,90345.0,90344.0,0.1114854]
[1765579966674,0.01661544,90345.0,90344.0,0.0893478]
[1765579967441,0.01661544,90345.0,90344.0,0.05610274]
[1765579967619,0.01661544,90345.0,90344.0,0.07824034]
[1765579979339,0.01661544,90345.0,90344.0,0.12144034]
[1765579983552,0.14765663,90351.0,90349.0,0.22136307]
[1765579983776,0.00025663,90351.0,90350.0,0.07023]
[1765579983946,0.00025663,90351.0,90350.0,0.09380274]
[1765579984360,0.00025663,90351.0,90350.0,0.12704423]
[1765579985501,0.00025663,90351.0,90350.0,0.14918036]
[1765579986359,0.00025663,90351.0,90350.0,0.15118036]
[1765579987764,0.00025663,90351.0,90350.0,0.15318036]
[1765579987979,0.00025663,90351.0,90350.0,0.13104423]
[1765580001035,0.00025663,90351.0,90350.0,0.1496481]
[1765580004261,0.00025663,90351.0,90350.0,0.13104423]
[1765580023650,0.00025663,90351.0,90350.0,0.14848423]
[1765580027918,0.00025663,90351.0,90350.0,0.17062036]
[1765580029099,0.00025663,90351.0,90350.0,0.14848423]
[1765580032028,0.00025663,90351.0,90350.0,0.10528423]
[1765580032571,0.00025663,90351.0,90350.0,0.03751423]
[1765580033075,0.00025663,90351.0,90350.0,0.00427274]
[1765580033540,0.00025663,90351.0,90350.0,0.01534031]
[1765580035222,0.00025663,90351.0,90350.0,0.00427274]
[1765580045848,0.22161555,90351.0,90350.0,0.00427274]
[1765580050821,0.22161555,90351.0,90350.0,0.004]
[1765580051644,0.01106855,90346.0,90343.0,0.01106892]
[1765580051838,0.01661544,90344.0,90343.0,0.02213796]
[1765580052075,0.01661544,90344.0,90343.0,0.01106892]
[1765580052933,0.01661544,90344.0,90343.0,0.004]
[1765580054207,0.01661544,90344.0,90343.0,0.00427274]
[1765580055570,0.01661544,90344.0,90343.0,0.00627274]
[1765580061919,0.01661544,90344.0,90343.0,0.00027274]
[1765580062130,0.01661544,90344.0,90343.0,0.00427274]
[1765580062285,0.01661544,90344.0,90343.0,0.00627274]
[1765580067711,0.01661544,90344.0,90343.0,0.006]
[1765580067865,0.01795557,90344.0,90343.0,0.006]
[1765580068448,0.02920557,90344.0,90343.0,0.006]
[1765580068654,0.02920557,90344.0,90343.0,0.004]
[1765580068874,0.02920557,90344.0,90343.0,0.006]
[1765580069894,0.02920557,90344.0,90343.0,0.002]
[1765580070235,0.02920557,90344.0,90343.0,0.005]
[1765580071825,0.04664557,90344.0,90343.0,0.005]
[1765580080530,0.33734557,90344.0,90343.0,0.005]
[1765580081142,0.38054557,90344.0,90343.0,0.005]
[1765580083253,0.52794557,90344.0,90343.0,0.005]
[1765580083738,0.48474557,90344.0,90343.0,0.005]
[1765580083926,0.52794557,90344.0,90343.0,0.005]
[1765580090473,0.48474557,90344.0,90343.0,0.005]
[1765580090648,0.46730557,90344.0,90343.0,0.005]
[1765580090841,0.48474557,90344.0,90343.0,0.005]
[1765580104159,0.52794557,90344.0,90343.0,0.005]
[1765580104368,0.51050557,90344.0,90343.0,0.005]
[1765580104578,0.52794557,90344.0,90343.0,0.005]
[1765580109287,0.55186124,90344.0,90343.0,0.005]
[1765580110269,0.50866124,90344.0,90343.0,0.005]
[1765580116385,0.55186124,90344.0,90343.0,0.005]
[1765580116753,0.50866124,90344.0,90343.0,0.005]
[1765580116942,0.55186124,90344.0,90343.0,0.005]
[1765580122983,0.50866124,90344.0,90343.0,0.005]
[1765580125492,0.55186124,90344.0,90343.0,0.005]
[1765580127457,0.50866124,90344.0,90343.0,0.005]
[1765580128423,0.55186124,90344.0,90343.0,0.005]
[1765580129114,0.50866124,90344.0,90343.0,0.005]
[1765580129762,0.55186124,90344.0,90343.0,0.005]
[1765580130008,0.50866124,90344.0,90343.0,0.005]
[1765580130186,0.48474557,90344.0,90343.0,0.005]
[1765580130356,0.50867046,90344.0,90343.0,0.005]
[1765580131812,0.55187046,90344.0,90343.0,0.005]
[1765580140312,0.50867046,90344.0,90343.0,0.005]
[1765580141321,0.55187046,90344.0,90343.0,0.005]
[1765580143493,0.50867046,90344.0,90343.0,0.005]
[1765580144040,0.55187046,90344.0,90343.0,0.005]
[1765580146675,0.50867046,90344.0,90343.0,0.005]
[1765580147687,0.55187046,90344.0,90343.0,0.005]
[1765580150213,0.50867046,90344.0,90343.0,0.005]
[1765580150603,0.55187046,90344.0,90343.0,0.005]
[1765580151172,0.50867046,90344.0,90343.0,0.005]
[1765580154264,0.50866838,90344.0,90343.0,0.005]
[1765580156366,0.55186838,90344.0,90343.0,0.005]
[1765580161146,0.50866838,90344.0,90343.0,0.005]
[1765580161305,0.55186838,90344.0,90343.0,0.005]
[1765580163932,0.50866838,90344.0,90343.0,0.005]
[1765580165260,0.55186838,90344.0,90343.0,0.005]
[1765580166612,0.50866838,90344.0,90343.0,0.005]
[1765580181670,0.55186838,90344.0,90343.0,0.005]
[1765580182071,0.50866838,90344.0,90343.0,0.005]
[1765580183127,0.58581167,90344.0,90343.0,0.005]
[1765580183324,0.62901167,90344.0,90343.0,0.005]
[1765580183534,0.65891518,90344.0,90343.0,0.005]
[1765580183737,0.62901167,90344.0,90343.0,0.005]
[1765580184116,0.62901167,90344.0,90343.0,0.002]
[1765580184346,0.62901167,90344.0,90340.0,0.00046844]
[1765580184347,0.0432,90341.0,90340.0,0.00046844]
[1765580184706,0.26458342,90341.0,90340.0,0.00046844]
[1765580185071,0.26901743,90341.0,90340.0,0.00046844]
[1765580185721,0.32373168,90341.0,90340.0,0.00046844]
[1765580186705,0.32373168,90341.0,90340.0,0.00146844]
[1765580187134,0.47113168,90341.0,90340.0,0.00346844]
[1765580187392,0.49505449,90341.0,90340.0,0.00346844]
[1765580194209,0.74255449,90341.0,90340.0,0.00346844]
[1765580194426,0.78575449,90341.0,90340.0,0.00346844]
[1765580215302,0.74255449,90341.0,90340.0,0.00346844]
[1765580215716,0.78575449,90341.0,90340.0,0.00346844]
[1765580226183,0.77241538,90341.0,90340.0,0.00346844]
[1765580226351,0.75999449,90341.0,90340.0,0.00346844]
[1765580226583,0.74255449,90341.0,90340.0,0.00346844]
[1765580226776,0.75999449,90341.0,90340.0,0.00346844]
[1765580227480,0.74255449,90341.0,90340.0,0.00046844]
[1765580227691,0.74255449,90341.0,90340.0,0.00146844]
[1765580227932,0.75999449,90341.0,90340.0,0.00446844]
[1765580228106,0.74255449,90341.0,90340.0,0.00146844]
[1765580228409,0.75999449,90341.0,90340.0,0.00346844]
[1765580228662,0.75999449,90341.0,90340.0,0.00046844]
[1765580229037,0.75999449,90341.0,90340.0,0.00346844]
[1765580230184,0.75999449,90341.0,90340.0,0.00546844]
[1765580235446,0.73607168,90341.0,90340.0,0.00546844]
[1765580247354,0.75995909,90341.0,90340.0,0.00546844]
[1765580306614,0.70524484,90341.0,90340.0,0.00546844]
[1765580320380,0.39065743,90341.0,90340.0,0.00546844]
[1765580320601,0.15183401,90341.0,90340.0,0.00546844]
[1765580320949,0.01661544,90344.0,90342.0,0.22137898]
[1765580321174,0.01661544,90344.0,90343.0,0.05241]
[1765580321410,0.01661544,90344.0,90343.0,0.05268274]
[1765580322037,0.01661544,90344.0,90343.0,0.27406126]
[1765580322626,0.01661544,90344.0,90343.0,0.31726126]
[1765580322823,0.01106782,90352.0,90348.0,0.23243323]
[1765580323063,0.03324422,90353.0,90350.0,0.24925137]
[1765580323356,0.22134737,90356.0,90350.0,0.29272411]
[1765580323357,0.01106745,90355.0,90350.0,0.29272411]
[1765580323555,0.01106757,90354.0,90350.0,0.31724411]
[1765580324170,0.01106757,90354.0,90350.0,0.32124411]
[1765580324380,0.5231162,90356.0,90350.0,0.32124411]
[1765580324740,0.22135161,90354.0,90350.0,0.09988274]
[1765580325136,0.05451176,90357.0,90350.0,0.09988274]
[1765580326240,0.01661544,90366.0,90350.0,0.09988274]
[1765580326449,0.01661544,90366.0,90350.0,0.10188274]
[1765580327030,0.01661544,90366.0,90350.0,0.09588274]
[1765580328642,0.01661544,90366.0,90350.0,0.09988274]
[1765580329785,0.01661544,90366.0,90350.0,0.09588274]
[1765580329984,0.01106476,90377.0,90350.0,0.09588274]
[1765580330187,0.01661544,90379.0,90350.0,0.11801887]
[1765580330397,0.02767958,90382.0,90350.0,0.11801887]
[1765580330980,0.01661544,90382.0,90381.0,0.0432]
[1765580331131,0.01661544,90382.0,90381.0,0.29177544]
[1765580331346,0.01661544,90382.0,90381.0,0.31609818]
[1765580331546,0.01753912,90382.0,90381.0,0.31609818]
[1765580332157,0.01765499,90382.0,90381.0,0.31609818]
[1765580332480,0.00103955,90382.0,90381.0,0.31609818]
[1765580332637,0.00103955,90382.0,90381.0,0.27289818]
[1765580332830,0.00103955,90382.0,90381.0,0.31709818]
[1765580333279,0.00103955,90382.0,90381.0,0.32009818]
[1765580334996,0.00103955,90382.0,90381.0,0.35332413]
[1765580335824,0.00103955,90382.0,90381.0,0.69404252]
[1765580336022,0.00103955,90382.0,90381.0,0.69304252]
[1765580336399,0.00103955,90382.0,90381.0,0.69404252]
[1765580336804,0.00103955,90382.0,90381.0,0.69504252]
[1765580337097,0.00103955,90382.0,90381.0,0.69004252]
[1765580338335,0.00103955,90382.0,90381.0,0.36676413]
[1765580338542,0.00103955,90382.0,90381.0,0.12803869]
[1765580338742,0.00103955,90382.0,90381.0,0.36676413]
[1765580339357,0.00103955,90382.0,90381.0,0.34932413]
[1765580339610,0.22232254,90382.0,90381.0,0.00027274]
[1765580340032,0.22232254,90382.0,90372.0,0.01221]
[1765580340033,0.22131238,90370.0,90368.0,0.03323239]
[1765580340243,0.22133442,90361.0,90360.0,0.0432]
[1765580340419,0.22133442,90361.0,90355.0,0.03626]
[1765580340420,0.2213444,90357.0,90355.0,0.03626]
[1765580340659,0.2213444,90357.0,90355.0,0.07946]
[1765580340848,0.2213444,90357.0,90348.0,0.0565173]
[1765580340849,0.0110688,90344.0,90337.0,0.01106966]
[1765580341061,0.01661544,90342.0,90338.0,0.07644363]
[1765580341268,0.01661544,90342.0,90338.0,0.0432]
[1765580341453,0.22138342,90341.0,90338.0,0.0432]
[1765580342106,0.22138342,90341.0,90340.0,0.00074118]
[1765580342519,0.22138342,90341.0,90340.0,0.00046844]
[1765580342957,0.25463375,90341.0,90340.0,0.00046844]
[1765580343292,0.54667388,90341.0,90340.0,0.00046844]
[1765580343497,0.54667388,90341.0,90340.0,0.00146844]
[1765580343724,0.54667388,90341.0,90340.0,0.00046844]
[1765580344133,0.54667388,90341.0,90340.0,0.00546844]
[1765580344331,0.54667388,90341.0,90340.0,0.00746844]
[1765580350382,0.25463375,90341.0,90340.0,0.00774118]
[1765580350581,0.01106733,90356.0,90350.0,0.01106806]
[1765580350805,0.01661544,90351.0,90350.0,0.0113408]
[1765580351230,0.01661544,90351.0,90350.0,0.0504708]
[1765580352344,0.23264618,90359.0,90357.0,0.0432]
[1765580352345,0.00023843,90359.0,90357.0,0.0432]
[1765580352560,0.00023843,90359.0,90358.0,0.02405]